bitfinex-derivatives/quotes_BTCF0:USTF0_20251002
["timestamp","ask_amount","ask_price","bid_price","bid_amount"]
[1759427454200,0.77980214,119860.0,119850.0,1.12504908]
[1759427454401,0.75936,119860.0,119850.0,1.12504908]
[1759427455000,0.02101,119860.0,119850.0,0.478788]
[1759427455300,0.78057,119860.0,119850.0,0.80191854]
[1759427455501,0.863951,119860.0,119850.0,0.80191854]
[1759427456093,0.876861,119860.0,119850.0,0.71853054]
[1759427456290,1.276861,119860.0,119850.0,0.38236]
[1759427456497,1.59999154,119860.0,119850.0,0.3608]
[1759427456699,1.276861,119860.0,119850.0,0.3608]
[1759427456898,1.276861,119860.0,119850.0,0.38299]
[1759427457197,0.517301,119860.0,119850.0,0.38299]
[1759427457401,1.276781,119860.0,119850.0,0.38299]
[1759427457800,1.276781,119860.0,119850.0,0.70612054]
[1759427458907,1.276781,119860.0,119850.0,0.3608]
[1759427459206,1.276781,119860.0,119850.0,0.38299]
[1759427459399,0.517301,119860.0,119850.0,0.38299]
[1759427459697,0.517301,119860.0,119840.0,0.3608]
[1759427459698,0.083388,119850.0,119840.0,0.3608]
[1759427459904,0.117928,119850.0,119840.0,0.3608]
[1759427460392,0.117928,119850.0,119840.0,0.38299]
[1759427461506,0.877208,119850.0,119840.0,0.38299]
[1759427461696,0.877168,119850.0,119840.0,0.38299]
[1759427462302,0.94235053,119850.0,119840.0,0.4663849]
[1759427462502,0.877168,119850.0,119840.0,0.4663849]
[1759427463104,0.877168,119850.0,119840.0,0.38299]
[1759427463305,0.877168,119850.0,119840.0,0.70612054]
[1759427463603,0.117928,119850.0,119840.0,0.70612054]
[1759427463809,0.877088,119850.0,119840.0,0.70612054]
[1759427464005,0.877088,119850.0,119840.0,0.78951544]
[1759427464310,0.877088,119850.0,119840.0,0.4663849]
[1759427464505,0.877088,119850.0,119840.0,0.78951544]
[1759427464706,0.117928,119850.0,119840.0,0.78951544]
[1759427465006,0.877008,119850.0,119840.0,0.78951544]
[1759427465210,0.877008,119850.0,119840.0,0.80248544]
[1759427465508,0.105018,119850.0,119840.0,0.80248544]
[1759427465902,0.864058,119850.0,119840.0,0.80248544]
[1759427466500,0.105018,119850.0,119840.0,0.80248544]
[1759427466701,0.17325539,119850.0,119840.0,0.80248544]
[1759427466901,0.93221539,119850.0,119840.0,0.80248544]
[1759427467109,0.4441779,119870.0,119850.0,0.0963579]
[1759427467407,0.24552162,119890.0,119880.0,0.02219]
[1759427467408,0.19236228,119890.0,119880.0,0.02219]
[1759427467596,0.98033714,119890.0,119880.0,0.80245764]
[1759427467801,0.09608938,119890.0,119880.0,1.16325764]
[1759427468002,0.77572938,119890.0,119880.0,1.16325764]
[1759427468205,0.85908948,119890.0,119880.0,1.16325764]
[1759427468500,0.79310845,119890.0,119880.0,1.16325764]
[1759427468711,0.80601845,119890.0,119880.0,0.75676]
[1759427469007,0.80601845,119890.0,119880.0,1.06692054]
[1759427469207,0.80601845,119890.0,119880.0,0.34532054]
[1759427469409,0.80601845,119890.0,119870.0,0.50193462]
[1759427469410,0.1179071,119880.0,119870.0,0.38299]
[1759427469601,0.1179071,119880.0,119870.0,0.4441741]
[1759427469800,0.02163,119900.0,119890.0,0.1185201]
[1759427470008,0.12641834,119900.0,119890.0,0.71909054]
[1759427470202,0.12641834,119900.0,119890.0,0.4793201]
[1759427470407,0.04306514,119900.0,119890.0,0.80245064]
[1759427470709,0.03454,119900.0,119890.0,0.80245064]
[1759427471912,0.80302,119900.0,119890.0,0.80245064]
[1759427472114,0.8863732,119900.0,119890.0,0.78948064]
[1759427472812,0.80302,119900.0,119890.0,0.78948064]
[1759427473015,0.80274,119900.0,119890.0,0.78948064]
[1759427473312,0.8860932,119900.0,119890.0,0.02219]
[1759427473712,0.8860932,119900.0,119890.0,0.38299]
[1759427474308,0.8860932,119900.0,119890.0,0.78948064]
[1759427474508,0.90611116,119900.0,119890.0,0.78948064]
[1759427475108,0.90611116,119900.0,119890.0,0.38299]
[1759427475301,0.03454,119890.0,119880.0,0.466353]
[1759427475501,0.1179001,119890.0,119880.0,0.78948354]
[1759427476909,0.8855401,119890.0,119880.0,0.78948354]
[1759427477110,0.8855401,119890.0,119880.0,0.466353]
[1759427477308,0.8855401,119890.0,119880.0,0.78948354]
[1759427477514,0.8855401,119890.0,119880.0,0.38299]
[1759427477711,0.8855401,119890.0,119880.0,0.02219]
[1759427477911,0.8855401,119890.0,119880.0,0.34532054]
[1759427478114,0.90555242,119890.0,119880.0,0.02219]
[1759427478415,0.90555242,119890.0,119880.0,0.34532054]
[1759427478716,0.13791242,119890.0,119880.0,0.42868764]
[1759427478918,0.90519242,119890.0,119880.0,0.42868764]
[1759427479119,0.90519242,119890.0,119880.0,0.4663571]
[1759427479310,0.90519242,119890.0,119880.0,0.78948764]
[1759427479714,0.13791242,119890.0,119880.0,0.80245764]
[1759427480016,0.90503242,119890.0,119880.0,0.80245764]
[1759427480316,0.8850201,119890.0,119880.0,0.80245764]
[1759427480917,0.8850201,119890.0,119880.0,0.4663571]
[1759427481120,0.90503199,119890.0,119880.0,0.78948764]
[1759427481318,0.8850201,119890.0,119880.0,0.78948764]
[1759427481620,0.1179001,119890.0,119880.0,0.78948764]
[1759427482013,0.8847801,119890.0,119880.0,0.78948764]
[1759427482219,0.1179001,119890.0,119880.0,0.78948764]
[1759427482419,0.8847001,119890.0,119880.0,0.78948764]
[1759427483109,0.8845801,119890.0,119880.0,0.4663571]
[1759427483513,1.60771064,119890.0,119880.0,0.4441671]
[1759427483715,0.1178871,119880.0,119870.0,0.79028964]
[1759427484718,0.1178871,119880.0,119870.0,0.80341964]
[1759427485021,0.8843271,119880.0,119870.0,0.80341964]
[1759427486323,0.8843271,119880.0,119870.0,0.80307403]
[1759427487718,0.8843271,119880.0,119870.0,0.78994403]
[1759427487917,0.8839671,119880.0,119870.0,0.78994403]
[1759427489821,0.8839671,119880.0,119870.0,0.80383403]
[1759427490921,1.20675203,119880.0,119870.0,0.70657493]
[1759427491126,1.20675203,119880.0,119870.0,0.34577493]
[1759427491521,1.92953696,119880.0,119860.0,0.3608]
[1759427491716,1.92953696,119880.0,119850.0,0.38324]
[1759427491717,0.119581,119860.0,119850.0,0.38324]
[1759427491924,1.246101,119860.0,119850.0,0.34522493]
[1759427492526,1.246141,119860.0,119850.0,0.35911493]
[1759427492723,0.885341,119860.0,119850.0,0.44250293]
[1759427493027,0.95332607,119860.0,119850.0,0.80330293]
[1759427494226,0.18756607,119860.0,119850.0,0.80330293]
[1759427494423,0.95324607,119860.0,119850.0,0.80330293]
[1759427495019,0.93988607,119860.0,119850.0,0.80330293]
[1759427495226,0.1063369,119870.0,119860.0,0.119711]
[1759427495420,0.8718169,119870.0,119860.0,1.12608086]
[1759427497226,0.93712207,119870.0,119860.0,1.12608086]
[1759427497727,0.95036207,119870.0,119860.0,0.480511]
[1759427497927,0.95036207,119870.0,119860.0,1.12608086]
[1759427498227,0.90510294,119870.0,119860.0,1.12608086]
[1759427498427,0.90510294,119870.0,119860.0,0.480511]
[1759427498826,0.90510294,119870.0,119860.0,1.12608086]
[1759427499818,0.90510294,119870.0,119860.0,0.80329593]
[1759427500022,0.90510294,119870.0,119860.0,1.12608086]
[1759427500424,0.13962294,119870.0,119860.0,0.34522493]
[1759427500728,1.22740787,119870.0,119860.0,0.42860593]
[1759427501329,0.46240787,119870.0,119860.0,0.42860593]
[1759427501628,0.96976793,119870.0,119860.0,0.75139086]
[1759427502331,0.96976793,119870.0,119860.0,0.42860593]
[1759427502631,0.96976793,119870.0,119850.0,0.4580719]
[1759427502632,0.119581,119860.0,119850.0,0.02244]
[1759427502831,0.46241197,119860.0,119850.0,0.42861293]
[1759427503031,0.13962704,119860.0,119850.0,0.44250293]
[1759427503833,0.89118704,119860.0,119850.0,0.44250293]
[1759427504530,0.871141,119860.0,119850.0,0.44250293]
[1759427504725,0.106341,119860.0,119850.0,0.44250293]
[1759427504925,0.871141,119860.0,119850.0,0.44250293]
[1759427505529,0.884381,119860.0,119850.0,0.44250293]
[1759427505933,0.884381,119860.0,119850.0,0.105828]
[1759427506128,1.20716593,119860.0,119850.0,0.42861293]
[1759427506324,0.119581,119860.0,119850.0,0.42861293]
[1759427506526,0.884221,119860.0,119850.0,0.42861293]
[1759427506832,0.119581,119860.0,119850.0,0.42861293]
[1759427507132,0.884101,119860.0,119850.0,0.42861293]
[1759427508230,0.884101,119860.0,119850.0,0.02244]
[1759427508231,1.20688593,119860.0,119850.0,0.02244]
[1759427508533,1.20688593,119860.0,119850.0,0.34522493]
[1759427508732,1.56768593,119860.0,119850.0,0.34522493]
[1759427509731,1.56768593,119860.0,119840.0,0.48898742]
[1759427509939,0.44237283,119850.0,119840.0,0.83421235]
[1759427510141,0.44237283,119850.0,119840.0,0.78941783]
[1759427510638,0.1195879,119850.0,119840.0,0.34522493]
[1759427510937,0.45748139,119850.0,119840.0,0.34522493]
[1759427511131,0.13469646,119850.0,119840.0,0.34522493]
[1759427511330,0.45748139,119850.0,119840.0,0.34522493]
[1759427511731,0.45748139,119850.0,119840.0,0.42861983]
[1759427512132,0.89873646,119850.0,119840.0,0.1058349]
[1759427512332,0.89873646,119850.0,119840.0,0.1197249]
[1759427512534,0.88545646,119850.0,119840.0,0.76529476]
[1759427513334,0.88541646,119850.0,119840.0,1.12609476]
[1759427513736,0.1063479,119850.0,119840.0,1.12609476]
[1759427513933,0.8702679,119850.0,119840.0,1.57088928]
[1759427516741,0.8702679,119850.0,119840.0,1.52609476]
[1759427517037,0.88532162,119850.0,119840.0,1.52609476]
[1759427517740,0.1063479,119850.0,119840.0,1.52609476]
[1759427517933,0.8700679,119850.0,119840.0,1.52609476]
[1759427520235,0.88518718,119850.0,119840.0,1.52609476]
[1759427521241,0.1063479,119850.0,119840.0,1.52609476]
[1759427521438,0.0833841,119860.0,119850.0,0.0833879]
[1759427521633,0.17369084,119870.0,119860.0,0.096621]
[1759427521944,0.95711152,119870.0,119860.0,1.12547086]
[1759427522132,0.19394622,119870.0,119860.0,1.12547086]
[1759427522331,0.93688554,119870.0,119860.0,1.12547086]
[1759427522934,0.9518498,119870.0,119860.0,1.12547086]
[1759427523338,0.93688554,119870.0,119860.0,1.12547086]
[1759427525851,0.869054,119870.0,119860.0,1.12547086]
[1759427526245,0.93482588,119870.0,119860.0,1.12547086]
[1759427526439,0.869054,119870.0,119860.0,1.12547086]
[1759427530854,0.869054,119870.0,119860.0,0.479901]
[1759427531052,0.869054,119870.0,119860.0,1.12547086]
[1759427537061,1.22572814,119870.0,119860.0,0.38328]
[1759427537360,0.90294321,119870.0,119860.0,0.70606493]
[1759427537561,1.22572814,119870.0,119860.0,0.70606493]
[1759427538953,1.22572814,119870.0,119860.0,1.02884986]
[1759427540859,1.22572814,119870.0,119860.0,0.38328]
[1759427541059,1.22572814,119870.0,119860.0,1.02884986]
[1759427541459,1.22572814,119870.0,119860.0,0.70606493]
[1759427543360,1.22572814,119870.0,119860.0,0.78944593]
[1759427543862,0.90294321,119870.0,119860.0,0.78944593]
[1759427544062,0.90294321,119870.0,119860.0,1.11223086]
[1759427545762,1.22572814,119870.0,119860.0,0.70606493]
[1759427545955,1.20548893,119870.0,119860.0,0.70606493]
[1759427546157,0.84228893,119870.0,119860.0,0.70606493]
[1759427546356,1.60328893,119870.0,119860.0,0.70606493]
[1759427546655,1.60328893,119870.0,119860.0,0.78944593]
[1759427547258,1.60328893,119870.0,119860.0,0.70606493]
[1759427548256,1.60328893,119870.0,119860.0,0.38328]
[1759427548257,1.280504,119870.0,119860.0,0.38328]
[1759427548652,0.519504,119870.0,119860.0,0.105861]
[1759427548861,1.280304,119870.0,119860.0,0.44146947]
[1759427549055,1.30057436,119870.0,119860.0,0.44146947]
[1759427549453,0.105854,119870.0,119860.0,0.80226947]
[1759427549764,0.18815585,119880.0,119870.0,0.117874]
[1759427549959,0.94899585,119880.0,119870.0,0.80155247]
[1759427552563,0.93416015,119880.0,119870.0,0.80155247]
[1759427553157,0.8666133,119880.0,119870.0,0.80155247]
[1759427554454,0.88687834,119880.0,119870.0,0.80155247]
[1759427554856,0.88687834,119880.0,119870.0,0.478674]
[1759427555059,0.88687834,119880.0,119870.0,0.80155247]
[1759427556167,0.8666133,119880.0,119870.0,0.80155247]
[1759427556668,0.8795033,119880.0,119870.0,0.80155247]
[1759427558372,0.8795033,119880.0,119870.0,0.478674]
[1759427558665,0.89976135,119880.0,119870.0,0.78882247]
[1759427559172,0.89976135,119880.0,119870.0,0.38257]
[1759427559363,0.8795033,119880.0,119870.0,0.38257]
[1759427559669,0.88627036,119880.0,119870.0,0.80155247]
[1759427560270,0.88631036,119880.0,119870.0,0.80155247]
[1759427561471,0.89920036,119880.0,119870.0,0.78882247]
[1759427563663,0.89896036,119880.0,119870.0,0.78882247]
[1759427564370,0.8787033,119880.0,119870.0,0.78882247]
[1759427564564,0.118704,119870.0,119860.0,0.4659492]
[1759427564767,0.118704,119870.0,119860.0,0.78882767]
[1759427565674,0.118704,119870.0,119860.0,0.70544847]
[1759427566371,0.118704,119870.0,119860.0,0.78882947]
[1759427567069,0.878544,119870.0,119860.0,0.80155947]
[1759427568172,0.878504,119870.0,119860.0,0.80155947]
[1759427569568,0.878504,119870.0,119860.0,0.478681]
[1759427569770,0.878504,119870.0,119860.0,0.80155947]
[1759427571165,0.878504,119870.0,119860.0,0.478681]
[1759427571364,0.878504,119870.0,119860.0,0.80155947]
[1759427572376,0.118704,119870.0,119860.0,0.80155947]
[1759427572574,0.105814,119870.0,119860.0,0.80155947]
[1759427572875,0.865214,119870.0,119860.0,0.80155947]
[1759427575176,0.865214,119870.0,119860.0,1.16235947]
[1759427575177,0.7818,119870.0,119860.0,1.16235947]
[1759427575363,0.8651741,119870.0,119860.0,1.16235947]
[1759427578876,0.8778741,119870.0,119860.0,1.16235947]
[1759427579275,0.8651741,119870.0,119860.0,1.16235947]
[1759427582480,0.8651741,119870.0,119860.0,1.22247191]
[1759427582675,0.8651741,119870.0,119860.0,1.16235947]
[1759427584581,0.8651741,119870.0,119860.0,0.826751]
[1759427584582,0.89833507,119870.0,119860.0,0.826751]
[1759427584782,0.89833507,119870.0,119860.0,1.14962947]
[1759427585280,0.8778741,119870.0,119860.0,1.14962947]
[1759427585480,0.89833599,119870.0,119860.0,1.14962947]
[1759427587381,0.89833599,119870.0,119860.0,0.826751]
[1759427587779,0.89833599,119870.0,119860.0,1.14962947]
[1759427588984,1.22121446,119870.0,119860.0,0.74337]
[1759427589180,1.22121446,119870.0,119860.0,0.38257]
[1759427589786,1.62121446,119870.0,119860.0,0.38257]
[1759427589975,0.117411,119860.0,119850.0,0.38284]
[1759427590176,0.13787289,119860.0,119850.0,0.38284]
[1759427590482,0.13787289,119860.0,119850.0,0.70571847]
[1759427591584,0.13787289,119860.0,119850.0,0.78910647]
[1759427591986,0.89699289,119860.0,119850.0,0.80211647]
[1759427592584,0.88429289,119860.0,119850.0,0.80211647]
[1759427594588,0.863831,119860.0,119850.0,0.80211647]
[1759427596588,0.104711,119860.0,119850.0,0.80211647]
[1759427596784,0.863831,119860.0,119850.0,0.80211647]
[1759427598085,0.876531,119860.0,119850.0,0.479238]
[1759427598284,0.876531,119860.0,119850.0,0.80211647]
[1759427598588,0.863831,119860.0,119850.0,0.80211647]
[1759427600288,0.876531,119860.0,119850.0,0.80211647]
[1759427601485,0.117411,119860.0,119850.0,0.80211647]
[1759427601789,0.876531,119860.0,119850.0,0.80211647]
[1759427602990,0.876531,119860.0,119850.0,0.479238]
[1759427603192,0.876531,119860.0,119850.0,0.80211647]
[1759427603894,0.876531,119860.0,119850.0,0.479238]
[1759427604092,0.876531,119860.0,119850.0,0.80211647]
[1759427605491,0.876531,119860.0,119850.0,0.78910647]
[1759427606384,0.876531,119860.0,119850.0,0.34491847]
[1759427606585,1.58083335,119860.0,119840.0,0.78095937]
[1759427606788,0.119418,119850.0,119840.0,0.80220937]
[1759427607189,0.119418,119850.0,119840.0,0.78831937]
[1759427608293,0.119418,119850.0,119840.0,1.11129082]
[1759427608593,0.119418,119850.0,119840.0,1.12425082]
[1759427609993,0.18511414,119850.0,119840.0,1.12425082]
[1759427610294,0.18511414,119850.0,119840.0,0.4784009]
[1759427610699,0.18511414,119850.0,119840.0,1.12425082]
[1759427611393,0.18511414,119850.0,119840.0,0.4784009]
[1759427611595,0.21255221,119850.0,119840.0,1.12425082]
[1759427613096,0.21255221,119850.0,119840.0,0.4784009]
[1759427613400,0.19886221,119850.0,119840.0,1.12425082]
[1759427613697,0.95794221,119850.0,119840.0,0.4784009]
[1759427613999,0.95794221,119850.0,119840.0,1.12425082]
[1759427614293,0.06569614,119850.0,119840.0,1.44717578]
[1759427614503,0.02234,119860.0,119850.0,0.1175922]
[1759427614800,0.864801,119860.0,119850.0,1.12424212]
[1759427615997,0.105721,119860.0,119850.0,1.12424212]
[1759427616400,0.864801,119860.0,119850.0,1.12424212]
[1759427617302,0.78142,119860.0,119850.0,1.12424212]
[1759427617501,0.864801,119860.0,119850.0,1.12424212]
[1759427618207,0.02234,119860.0,119850.0,1.12424212]
[1759427618409,0.78142,119860.0,119850.0,1.12424212]
[1759427618605,0.88544501,119860.0,119850.0,1.12424212]
[1759427618806,0.864801,119860.0,119850.0,1.12424212]
[1759427619206,0.88545021,119860.0,119850.0,1.12424212]
[1759427622609,0.864801,119860.0,119850.0,1.12424212]
[1759427622811,0.864801,119860.0,119850.0,0.80131716]
[1759427623308,0.88545016,119860.0,119850.0,0.80131716]
[1759427624204,0.88545016,119860.0,119850.0,1.12424212]
[1759427624799,0.80202916,119860.0,119850.0,1.12424212]
[1759427629008,0.88541016,119860.0,119850.0,1.12424212]
[1759427629512,0.88541016,119860.0,119850.0,0.4783922]
[1759427629712,0.88541016,119860.0,119850.0,0.80131716]
[1759427630607,0.89910016,119860.0,119850.0,0.80131716]
[1759427630806,0.89910016,119860.0,119850.0,0.4654322]
[1759427631009,0.89910016,119860.0,119850.0,0.78835716]
[1759427632113,0.89910016,119860.0,119850.0,0.4654322]
[1759427632315,0.89910016,119860.0,119850.0,0.78835716]
[1759427633210,0.89910016,119860.0,119850.0,0.4654322]
[1759427633514,0.89910016,119860.0,119850.0,0.78835716]
[1759427634816,0.878451,119860.0,119850.0,0.78835716]
[1759427636314,1.20137596,119860.0,119850.0,0.42755716]
[1759427637516,0.878451,119860.0,119850.0,0.42755716]
[1759427637717,0.02234,119860.0,119850.0,0.80095716]
[1759427637918,0.78126,119860.0,119850.0,0.80095716]
[1759427639719,0.02234,119860.0,119850.0,0.80095716]
[1759427639919,0.78126,119860.0,119850.0,0.80095716]
[1759427640319,0.78122,119860.0,119850.0,0.80095716]
[1759427640818,0.864601,119860.0,119850.0,0.80095716]
[1759427642320,0.864601,119860.0,119850.0,0.8610696]
[1759427642521,0.864601,119860.0,119850.0,0.53814464]
[1759427642718,0.864601,119860.0,119850.0,0.8610696]
[1759427642920,0.864601,119860.0,119850.0,0.80095716]
[1759427645017,0.88525685,119860.0,119850.0,0.80095716]
[1759427645324,0.12637685,119860.0,119850.0,0.80095716]
[1759427645522,0.88521685,119860.0,119850.0,0.80095716]
[1759427645821,0.80183585,119860.0,119850.0,0.80095716]
[1759427646021,0.88521685,119860.0,119850.0,1.12388212]
[1759427647024,0.04299585,119860.0,119850.0,1.12388212]
[1759427647223,0.80183585,119860.0,119850.0,1.12388212]
[1759427648022,0.78118,119860.0,119850.0,1.12388212]
[1759427648218,0.864561,119860.0,119850.0,1.12388212]
[1759427650527,0.88521765,119860.0,119850.0,1.12388212]
[1759427650926,0.88521765,119860.0,119850.0,0.80095716]
[1759427652724,0.88521765,119860.0,119850.0,0.4780322]
[1759427652926,0.89841765,119860.0,119850.0,0.4654322]
[1759427653126,1.22134261,119860.0,119850.0,0.78835716]
[1759427653528,1.22134261,119860.0,119850.0,0.78635716]
[1759427654928,0.89841765,119860.0,119850.0,0.78635716]
[1759427655827,0.80175665,119860.0,119850.0,0.79895716]
[1759427656035,0.80171665,119860.0,119850.0,0.79895716]
[1759427656328,0.04299665,119860.0,119850.0,0.79895716]
[1759427656529,0.80171665,119860.0,119850.0,0.79895716]
[1759427656935,0.80171665,119860.0,119850.0,0.4760322]
[1759427657131,0.80171665,119860.0,119850.0,0.79895716]
[1759427657428,0.78106,119860.0,119850.0,0.79895716]
[1759427657730,0.864441,119860.0,119850.0,0.79895716]
[1759427660830,0.864401,119860.0,119850.0,0.79895716]
[1759427661834,0.864401,119860.0,119850.0,0.8590696]
[1759427663226,0.105721,119860.0,119850.0,0.8590696]
[1759427663431,0.864401,119860.0,119850.0,0.8590696]
[1759427664631,0.105721,119860.0,119850.0,0.8590696]
[1759427664832,0.864361,119860.0,119850.0,0.8590696]
[1759427666834,0.878351,119860.0,119850.0,0.52354464]
[1759427667035,0.878351,119860.0,119850.0,0.8464696]
[1759427670239,0.878351,119860.0,119850.0,0.84642819]
[1759427674346,0.878231,119860.0,119850.0,0.84642819]
[1759427674645,0.89893082,119860.0,119850.0,0.78631575]
[1759427675439,0.89893082,119860.0,119850.0,0.4634322]
[1759427675842,0.89893082,119860.0,119850.0,0.78631575]
[1759427678239,0.89893082,119860.0,119850.0,0.4634322]
[1759427678444,0.89893082,119860.0,119850.0,0.78631575]
[1759427678946,1.22181437,119860.0,119850.0,0.38205]
[1759427679140,0.1059249,119840.0,119830.0,0.53861439]
[1759427679346,0.89909738,119840.0,119830.0,0.8013855]
[1759427680245,0.81570248,119840.0,119830.0,0.8013855]
[1759427680638,0.81570248,119840.0,119830.0,0.47850195]
[1759427680844,0.81570248,119840.0,119830.0,0.8013855]
[1759427681249,0.81570248,119840.0,119830.0,0.47850195]
[1759427681445,0.89909738,119840.0,119830.0,0.47850195]
[1759427681749,0.89909738,119840.0,119830.0,0.8013855]
[1759427683646,0.80167248,119840.0,119830.0,0.8013855]
[1759427684348,0.84695181,119840.0,119830.0,0.8013855]
[1759427686453,0.86094181,119840.0,119830.0,0.8013855]
[1759427686755,0.94433671,119840.0,119830.0,0.8013855]
[1759427688454,0.94433671,119840.0,119830.0,0.47850195]
[1759427688753,0.94433671,119840.0,119830.0,0.8013855]
[1759427692156,0.18589671,119840.0,119830.0,0.8013855]
[1759427692356,0.94425671,119840.0,119830.0,0.8013855]
[1759427694046,1.26714026,119840.0,119830.0,0.38237185]
[1759427695460,0.94425671,119840.0,119830.0,0.38237185]
[1759427695655,1.26714026,119840.0,119830.0,0.38237185]
[1759427696761,1.26714026,119840.0,119830.0,0.46577375]
[1759427697956,1.26714026,119840.0,119830.0,0.02157185]
[1759427698354,2.02794026,119840.0,119830.0,8.185e-05]
[1759427698554,1.2908705,119840.0,119830.0,8.185e-05]
[1759427698862,2.0491905,119840.0,119830.0,8.185e-05]
[1759427699260,2.02790026,119840.0,119830.0,8.185e-05]
[1759427699563,2.04919232,119840.0,119830.0,0.02220185]
[1759427700160,1.72630877,119840.0,119830.0,8.185e-05]
[1759427700360,2.04919232,119840.0,119830.0,8.185e-05]
[1759427700864,1.29087232,119840.0,119830.0,8.185e-05]
[1759427701356,2.04919232,119840.0,119830.0,8.185e-05]
[1759427702060,0.1194019,119830.0,119820.0,0.083407]
[1759427702261,0.46377588,119830.0,119820.0,0.083407]
[1759427702657,0.1194019,119830.0,119820.0,0.42841055]
[1759427702867,0.8777219,119830.0,119820.0,0.78921055]
[1759427703064,0.87779697,119830.0,119820.0,0.78921055]
[1759427703362,0.87779697,119830.0,119820.0,0.80215055]
[1759427705559,0.02338507,119830.0,119820.0,1.1250341]
[1759427705766,7.507e-05,119830.0,119820.0,1.5250341]
[1759427705966,0.11985446,119860.0,119850.0,0.105508]
[1759427705967,0.0373,119860.0,119850.0,0.105508]
[1759427706164,0.5312023,119860.0,119850.0,0.466308]
[1759427706366,0.5312023,119860.0,119850.0,0.78919155]
[1759427707462,0.78159,119860.0,119850.0,1.1250151]
[1759427707861,0.78155,119860.0,119850.0,1.1250151]
[1759427709669,0.8467471,119860.0,119850.0,1.1250151]
[1759427709869,0.8467471,119860.0,119850.0,0.479248]
[1759427710066,0.8467471,119860.0,119850.0,0.80213155]
[1759427711560,0.04650435,119870.0,119860.0,0.083381]
[1759427711769,0.69827,119870.0,119860.0,0.80212455]
[1759427713467,0.02331,119870.0,119860.0,0.80212455]
[1759427713769,0.38447,119870.0,119860.0,0.80212455]
[1759427715560,0.4678441,119870.0,119860.0,0.80212455]
[1759427720771,0.38447,119870.0,119860.0,0.80212455]
[1759427721362,0.38447,119870.0,119860.0,0.479241]
[1759427721763,0.38447,119870.0,119860.0,0.80212455]
[1759427724076,0.38447,119870.0,119860.0,0.479241]
[1759427724266,0.38447,119870.0,119860.0,0.80212455]
[1759427724969,0.4678441,119870.0,119860.0,0.80212455]
[1759427729374,0.4678441,119870.0,119860.0,0.479241]
[1759427729574,0.4678441,119870.0,119860.0,0.80212455]
[1759427729772,0.4807041,119870.0,119860.0,0.479241]
[1759427730077,0.4807041,119870.0,119860.0,0.80212455]
[1759427731173,0.4807041,119870.0,119860.0,0.466301]
[1759427731473,0.4807041,119870.0,119860.0,0.78918455]
[1759427731666,0.1195441,119870.0,119860.0,0.466301]
[1759427731871,0.1195441,119870.0,119860.0,0.78918455]
[1759427732371,0.1195441,119870.0,119860.0,1.12503112]
[1759427732570,0.8644841,119870.0,119860.0,1.12503112]
[1759427732975,0.78111,119870.0,119860.0,1.12503112]
[1759427734168,0.80251919,119870.0,119860.0,1.12503112]
[1759427734575,0.78111,119870.0,119860.0,1.12503112]
[1759427735680,0.78107,119870.0,119860.0,1.12503112]
[1759427735876,0.78107,119870.0,119860.0,1.44784618]
[1759427736579,0.78107,119870.0,119860.0,1.12503112]
[1759427737273,0.02331,119870.0,119860.0,1.12503112]
[1759427737475,0.78103,119870.0,119860.0,1.12503112]
[1759427738880,0.80247189,119870.0,119860.0,1.12503112]
[1759427744981,0.04475189,119870.0,119860.0,1.12503112]
[1759427745179,0.80243189,119870.0,119860.0,1.12503112]
[1759427746688,0.04475189,119870.0,119860.0,1.12503112]
[1759427746986,0.80239189,119870.0,119860.0,1.12503112]
[1759427748890,0.88576599,119870.0,119860.0,1.12503112]
[1759427754491,0.04475189,119870.0,119860.0,1.12503112]
[1759427754691,0.80231189,119870.0,119860.0,1.12503112]
[1759427756191,0.88568599,119870.0,119860.0,1.48583112]
[1759427757197,0.89842599,119870.0,119860.0,0.840201]
[1759427757399,0.89842599,119870.0,119860.0,1.48583112]
[1759427761096,0.88568599,119870.0,119860.0,1.48583112]
[1759427764005,0.88556599,119870.0,119860.0,1.48583112]
[1759427768095,1.22112105,119870.0,119860.0,0.74372]
[1759427768297,1.62112105,119870.0,119860.0,0.74372]
[1759427768506,1.62112105,119870.0,119860.0,1.06653506]
[1759427768703,1.62112105,119870.0,119860.0,0.70573506]
[1759427768898,1.29830599,119870.0,119860.0,1.02855012]
[1759427769204,0.04475189,119870.0,119860.0,1.44825618]
[1759427769404,0.80215189,119870.0,119860.0,1.44825618]
[1759427770002,0.04475189,119870.0,119860.0,1.80905618]
[1759427770309,0.80211189,119870.0,119860.0,1.80905618]
[1759427771200,0.02144189,119870.0,119860.0,1.80905618]
[1759427771409,0.04429045,119890.0,119880.0,0.1201671]
[1759427771607,0.1052402,119890.0,119880.0,1.44941228]
[1759427772304,0.77924,119890.0,119880.0,1.44941228]
[1759427772808,0.840716,119900.0,119880.0,1.44941228]
[1759427773003,0.8804209,119900.0,119890.0,1.04323012]
[1759427773198,0.8804181,119900.0,119890.0,1.12659032]
[1759427773408,0.8625932,119900.0,119890.0,1.12659032]
[1759427773805,0.77924,119900.0,119890.0,1.12659032]
[1759427774204,0.08857666,119910.0,119900.0,0.1201532]
[1759427774408,0.08857666,119910.0,119900.0,1.12658332]
[1759427774708,0.1052223,119920.0,119910.0,0.1201463]
[1759427774903,0.8625023,119920.0,119910.0,1.12657642]
[1759427775201,0.01761287,119930.0,119920.0,0.096847]
[1759427775409,0.77916,119930.0,119920.0,1.12656712]
[1759427775608,0.8624924,119930.0,119920.0,1.12656712]
[1759427776703,0.88055353,119930.0,119920.0,1.12656712]
[1759427777207,0.94819885,119930.0,119920.0,1.04323012]
[1759427777403,0.96093885,119930.0,119920.0,1.12656942]
[1759427777605,0.94819885,119930.0,119920.0,1.12656942]
[1759427778204,0.02188,119930.0,119920.0,1.12656942]
[1759427778406,0.1052077,119940.0,119930.0,0.1201296]
[1759427778608,0.56044678,119940.0,119930.0,0.72041506]
[1759427778804,0.56044678,119940.0,119930.0,0.80374736]
[1759427781012,0.77896,119940.0,119930.0,1.12656242]
[1759427781807,0.88021894,119940.0,119930.0,1.12656242]
[1759427782913,0.88021894,119940.0,119930.0,0.72041506]
[1759427783114,0.88021894,119940.0,119930.0,0.80374736]
[1759427786816,0.89402894,119940.0,119930.0,0.70690506]
[1759427787211,0.89402894,119940.0,119930.0,0.79023746]
[1759427790116,0.89402894,119940.0,119930.0,0.4674224]
[1759427790516,0.1197224,119930.0,119920.0,0.70461506]
[1759427790720,0.44253746,119930.0,119920.0,0.70461506]
[1759427791019,0.1197224,119930.0,119920.0,0.78795436]
[1759427791322,0.44253746,119930.0,119920.0,0.70461506]
[1759427792118,0.44253746,119930.0,119920.0,0.3818]
[1759427792318,0.46370939,119930.0,119920.0,0.70461506]
[1759427793516,0.14089433,119930.0,119920.0,0.70461506]
[1759427793719,0.14089433,119930.0,119920.0,0.78795436]